bitfinex-derivatives/quotes_BTCF0:USTF0_20251128
["timestamp","ask_amount","ask_price","bid_price","bid_amount"]
[1764328234011,0.74942,91612.0,91611.0,0.3608]
[1764328234309,0.74942,91612.0,91611.0,0.48508]
[1764328234904,0.74842,91612.0,91611.0,0.48508]
[1764328235109,0.74942,91612.0,91611.0,0.48508]
[1764328236197,0.74642,91612.0,91611.0,0.48508]
[1764328236403,0.74942,91612.0,91611.0,0.48508]
[1764328236909,0.57682,91612.0,91611.0,0.12428]
[1764328237108,0.003,91612.0,91611.0,0.12428]
[1764328237309,0.00016372,91621.0,91620.0,0.1351957]
[1764328237499,0.16537,91662.0,91661.0,0.0109108]
[1764328237704,0.61537,91662.0,91661.0,0.1351908]
[1764328237904,0.12677,91655.0,91654.0,0.1351916]
[1764328238213,0.53677,91655.0,91654.0,0.1351916]
[1764328239405,0.47205,91655.0,91654.0,0.1351916]
[1764328239605,0.06305,91662.0,91661.0,0.1351908]
[1764328239909,0.54877,91662.0,91661.0,0.1351908]
[1764328240114,0.18305,91662.0,91661.0,0.1351908]
[1764328240309,0.001,91662.0,91661.0,0.1351908]
[1764328240614,0.48757,91685.0,91684.0,0.12428]
[1764328240816,0.00027267,91686.0,91685.0,0.12428]
[1764328242203,0.00016363,91695.0,91694.0,0.1351869]
[1764328242408,0.43221363,91695.0,91694.0,0.4959869]
[1764328242602,0.49693363,91695.0,91694.0,0.4959869]
[1764328243213,0.49693363,91695.0,91694.0,0.3608]
[1764328243712,0.49693363,91695.0,91694.0,0.42099]
[1764328244620,0.49893363,91695.0,91694.0,0.48508]
[1764328245418,0.49993363,91695.0,91694.0,0.48508]
[1764328245919,0.49893363,91695.0,91694.0,0.48508]
[1764328246124,0.49793363,91695.0,91694.0,0.48508]
[1764328246615,0.49893363,91695.0,91694.0,0.48508]
[1764328246813,0.49893363,91695.0,91694.0,0.42099]
[1764328247015,0.49693363,91695.0,91694.0,0.3608]
[1764328247623,0.49793363,91695.0,91694.0,0.3608]
[1764328247811,0.49793363,91695.0,91694.0,0.37577888]
[1764328248014,0.49793363,91695.0,91693.0,0.010907]
[1764328248015,0.12677,91684.0,91683.0,0.3608]
[1764328248215,0.12677,91677.0,91670.0,0.0109097]
[1764328248518,0.50677,91677.0,91673.0,0.0109094]
[1764328249022,0.50677,91677.0,91676.0,0.06035363]
[1764328249922,0.50777,91677.0,91676.0,0.06035363]
[1764328250220,0.15877,91677.0,91676.0,0.13969515]
[1764328250422,0.52877,91677.0,91676.0,0.13969515]
[1764328250724,0.21877,91677.0,91676.0,0.13969515]
[1764328251021,0.50405,91677.0,91676.0,0.13969515]
[1764328251221,0.002,91677.0,91676.0,0.13969515]
[1764328252221,0.002,91677.0,91676.0,0.15060525]
[1764328252522,0.12877,91677.0,91676.0,0.15060525]
[1764328252918,0.12677,91677.0,91676.0,0.15060525]
[1764328253521,0.57868,91677.0,91676.0,0.02632525]
[1764328253713,0.57968,91677.0,91676.0,0.02632525]
[1764328254127,0.56877,91677.0,91676.0,0.02632525]
[1764328254520,0.56877,91677.0,91676.0,0.15060525]
[1764328254921,0.56777,91677.0,91676.0,0.15060525]
[1764328255224,0.56877,91677.0,91676.0,0.08651525]
[1764328255525,0.56777,91677.0,91676.0,0.01541515]
[1764328255723,0.56977,91677.0,91676.0,3.63e-06]
[1764328255927,0.12677,91657.0,91656.0,0.0109124]
[1764328256123,0.12677,91657.0,91656.0,0.0711024]
[1764328256314,0.12677,91657.0,91656.0,0.1351924]
[1764328256523,0.51677,91657.0,91656.0,0.0109124]
[1764328257329,0.12677,91654.0,91653.0,0.01530291]
[1764328257527,0.1376828,91653.0,91652.0,0.0109129]
[1764328257734,0.1376832,91650.0,91649.0,0.3717133]
[1764328257919,0.5076832,91650.0,91649.0,0.3717133]
[1764328259025,0.5076832,91650.0,91649.0,0.3737133]
[1764328259621,0.49677,91650.0,91649.0,0.3737133]
[1764328259821,0.49677,91650.0,91649.0,0.4339033]
[1764328260127,0.49677,91650.0,91649.0,0.3737133]
[1764328260321,0.49677,91650.0,91630.0,0.18769057]
[1764328260322,0.0109151,91634.0,91631.0,0.0109154]
[1764328260520,0.5076851,91634.0,91631.0,0.0109154]
[1764328260725,0.43205,91634.0,91633.0,0.12439013]
[1764328260921,0.12677,91644.0,91643.0,0.12428]
[1764328261122,0.52677,91644.0,91643.0,0.135194]
[1764328262327,0.52777,91644.0,91643.0,0.135194]
[1764328262522,0.52977,91644.0,91643.0,0.135194]
[1764328264935,0.52677,91644.0,91643.0,0.135194]
[1764328265232,0.52977,91644.0,91643.0,0.135194]
[1764328265823,0.52877,91644.0,91643.0,0.135194]
[1764328267729,0.52777,91644.0,91643.0,0.135194]
[1764328268031,0.52977,91644.0,91643.0,0.135194]
[1764328268232,0.52877,91644.0,91643.0,0.135194]
[1764328268539,0.52977,91644.0,91643.0,0.135194]
[1764328269039,0.52877,91644.0,91643.0,0.135194]
[1764328269239,0.52977,91644.0,91643.0,0.135194]
[1764328269628,0.52877,91644.0,91643.0,0.135194]
[1764328270133,0.52877,91644.0,91643.0,0.1506172]
[1764328270434,0.52777,91644.0,91643.0,0.1506172]
[1764328271030,0.52677,91644.0,91643.0,0.1506172]
[1764328271232,0.52877,91644.0,91643.0,0.1506172]
[1764328271431,0.52977,91644.0,91643.0,0.1506172]
[1764328271633,0.52777,91644.0,91643.0,0.1506172]
[1764328271937,0.52977,91644.0,91643.0,0.1506172]
[1764328272132,0.52877,91644.0,91643.0,0.1506172]
[1764328272326,0.28877,91644.0,91643.0,0.1506172]
[1764328274132,0.28777,91644.0,91643.0,0.1506172]
[1764328274731,0.47324,91652.0,91651.0,0.1232031]
[1764328274934,0.92324,91652.0,91651.0,0.1232031]
[1764328275233,0.47324,91652.0,91651.0,0.1232031]
[1764328275424,0.00016363,91653.0,91652.0,0.11229]
[1764328276543,0.05203363,91653.0,91652.0,0.11229]
[1764328277331,0.00016363,91653.0,91652.0,0.11229]
[1764328277534,0.05203363,91653.0,91652.0,0.11229]
[1764328278537,0.00016363,91653.0,91652.0,0.11229]
[1764328278838,0.11244,91663.0,91662.0,0.1232018]
[1764328279025,0.11244,91663.0,91662.0,0.4840018]
[1764328279942,0.11244,91663.0,91653.0,0.01107643]
[1764328279943,0.11244,91654.0,91653.0,0.06291643]
[1764328280440,0.11244,91654.0,91653.0,0.12336643]
[1764328280934,0.11244,91654.0,91653.0,0.12436643]
[1764328281537,0.49344,91654.0,91653.0,0.00016363]
[1764328282832,0.87901074,91654.0,91653.0,0.00016363]
[1764328283032,0.88001074,91654.0,91653.0,0.00016363]
[1764328283739,0.88201074,91654.0,91653.0,0.00016363]
[1764328284242,0.12853,91644.0,91643.0,0.010914]
[1764328284536,0.57853,91644.0,91643.0,0.010914]
[1764328285334,0.57853,91644.0,91643.0,0.011914]
[1764328286730,0.57853,91644.0,91643.0,0.108954]
[1764328286731,0.12853,91644.0,91643.0,0.108954]
[1764328289135,0.09743,91644.0,91643.0,0.108954]
[1764328290545,0.12853,91651.0,91650.0,0.1079532]
[1764328290843,0.15853,91651.0,91650.0,0.1079532]
[1764328291430,0.09743,91651.0,91650.0,0.1079532]
[1764328292139,0.12698,91651.0,91650.0,0.1079532]
[1764328293536,0.12798,91651.0,91650.0,0.1079532]
[1764328293931,0.12698,91651.0,91650.0,0.1079532]
[1764328294137,0.12898,91651.0,91650.0,0.1079532]
[1764328296334,0.12698,91651.0,91650.0,0.1079532]
[1764328296538,0.12898,91651.0,91650.0,0.1079532]
[1764328300359,0.51898,91651.0,91650.0,0.0109132]
[1764328300745,0.51898,91651.0,91650.0,0.0602232]
[1764328301143,0.51898,91651.0,91650.0,0.0109132]
[1764328304956,0.12898,91651.0,91650.0,0.0109132]
[1764328305152,0.24898,91651.0,91650.0,0.0602232]
[1764328305454,0.12898,91651.0,91650.0,0.1100332]
[1764328306449,0.12898,91651.0,91650.0,0.0602232]
[1764328307154,0.10347,91643.0,91642.0,0.01540653]
[1764328307461,0.48347,91643.0,91642.0,0.1100342]
[1764328308258,0.50929377,91643.0,91642.0,0.1100342]
[1764328312171,0.21929377,91643.0,91642.0,0.1100342]
[1764328312763,0.51929377,91643.0,91642.0,0.1100342]
[1764328315366,0.29929377,91643.0,91642.0,0.1100342]
[1764328315961,0.30029377,91643.0,91642.0,0.1100342]
[1764328318261,0.27447,91643.0,91642.0,0.1100342]
[1764328319258,0.27347,91643.0,91642.0,0.1100342]
[1764328319458,0.27447,91643.0,91642.0,0.1100342]
[1764328319872,0.27347,91643.0,91642.0,0.1100342]
[1764328320062,0.10447,91643.0,91642.0,0.1100342]
[1764328322474,0.10347,91643.0,91642.0,0.1100342]
[1764328322665,0.3608,91649.0,91648.0,0.1046034]
[1764328322666,0.45833,91649.0,91648.0,0.1046034]
[1764328323067,0.04740363,91653.0,91652.0,0.104603]
[1764328323467,0.09769363,91653.0,91652.0,0.104603]
[1764328326270,0.09869363,91653.0,91652.0,0.104603]
[1764328326865,0.09769363,91653.0,91652.0,0.465403]
[1764328328778,0.08921,91668.0,91667.0,0.1026412]
[1764328330180,0.09021,91668.0,91667.0,0.1026412]
[1764328334979,0.09021,91668.0,91667.0,0.11697484]
[1764328335878,0.1001221,91659.0,91658.0,0.00016363]
[1764328336073,0.4701221,91659.0,91658.0,0.00016363]
[1764328337185,0.4701221,91659.0,91658.0,0.01107593]
[1764328337381,0.4701221,91659.0,91658.0,0.01207593]
[1764328338884,0.4711221,91659.0,91658.0,0.01107593]
[1764328339180,0.4721221,91659.0,91658.0,0.01107593]
[1764328339482,0.4741221,91659.0,91658.0,0.02547525]
[1764328339683,0.4731221,91659.0,91658.0,0.02547525]
[1764328339883,0.4741221,91659.0,91658.0,0.01456295]
[1764328340984,0.4741221,91659.0,91658.0,0.02547525]
[1764328341589,0.4731221,91659.0,91658.0,0.02547525]
[1764328341883,0.4741221,91659.0,91658.0,0.02547525]
[1764328343583,0.4741221,91659.0,91658.0,0.06958525]
[1764328344095,0.4741221,91659.0,91658.0,0.02547525]
[1764328344887,0.4741221,91659.0,91658.0,0.11328525]
[1764328345274,0.4711221,91659.0,91658.0,0.11328525]
[1764328345478,0.4731221,91659.0,91658.0,0.11328525]
[1764328345883,0.4711221,91659.0,91658.0,0.11328525]
[1764328346076,0.4721221,91659.0,91658.0,0.11328525]
[1764328346278,0.4731221,91659.0,91658.0,0.06958525]
[1764328346478,0.4711221,91659.0,91658.0,0.06958525]
[1764328346686,0.4731221,91659.0,91658.0,0.06958525]
[1764328346987,0.4731221,91659.0,91658.0,0.02547525]
[1764328348091,0.49913062,91659.0,91658.0,0.02547525]
[1764328348292,0.4731221,91659.0,91658.0,0.02547525]
[1764328350491,0.2031221,91659.0,91658.0,0.11328525]
[1764328350980,0.19221,91659.0,91658.0,0.11328525]
[1764328351576,0.04604,91659.0,91658.0,0.11328525]
[1764328351779,0.09149,91659.0,91658.0,0.47408525]
[1764328352177,0.08949,91659.0,91658.0,0.47408525]
[1764328352378,0.09149,91659.0,91658.0,0.47408525]
[1764328352778,0.08949,91659.0,91658.0,0.47408525]
[1764328353087,0.08949,91659.0,91658.0,0.47508525]
[1764328353589,0.08849,91659.0,91658.0,0.47508525]
[1764328354094,0.08849,91659.0,91658.0,0.47408525]
[1764328354386,0.08849,91659.0,91658.0,0.47508525]
[1764328355289,0.08849,91659.0,91658.0,0.47408525]
[1764328355492,0.08849,91659.0,91658.0,0.47508525]
[1764328355886,0.08849,91659.0,91658.0,0.47408525]
[1764328356593,0.08849,91659.0,91658.0,0.47508525]
[1764328357994,0.08849,91659.0,91658.0,0.11328525]
[1764328359201,0.08849,91659.0,91658.0,0.06958525]
[1764328359586,0.08849,91659.0,91658.0,0.11508525]
[1764328365306,0.11453012,91659.0,91658.0,0.11508525]
[1764328366687,0.08849,91659.0,91658.0,0.11508525]
[1764328370701,0.17154422,91670.0,91658.0,0.11508525]
[1764328370702,0.25557422,91670.0,91669.0,0.0987609]
[1764328370901,0.42999643,91670.0,91669.0,0.0987609]
[1764328372097,0.43099643,91670.0,91669.0,0.0987609]
[1764328374793,0.43199643,91670.0,91669.0,0.0987609]
[1764328375501,0.20199643,91670.0,91669.0,0.0987609]
[1764328375802,0.19999643,91670.0,91669.0,0.0987609]
[1764328375992,0.20199643,91670.0,91669.0,0.0987609]
[1764328376296,0.14199643,91670.0,91669.0,0.0987609]
[1764328376503,0.59199643,91670.0,91669.0,0.0987609]
[1764328378296,0.59199643,91670.0,91669.0,0.11425246]
[1764328378494,0.59199643,91670.0,91669.0,0.02640246]
[1764328378694,0.59299643,91670.0,91669.0,0.02640246]
[1764328380901,0.59399643,91670.0,91669.0,0.02640246]
[1764328381409,0.08403,91659.0,91658.0,0.00016363]
[1764328381593,0.50403,91659.0,91658.0,0.00016363]
[1764328381797,0.0930536,91647.0,91643.0,0.010914]
[1764328382092,0.0109147,91638.0,91637.0,0.0109147]
[1764328382297,0.53214,91638.0,91637.0,0.0109147]
[1764328382504,0.53214,91638.0,91637.0,0.0875347]
[1764328383107,0.0930548,91637.0,91636.0,0.01586097]
[1764328383296,0.0930548,91637.0,91633.0,0.00011013]
[1764328383297,0.0930551,91634.0,91633.0,0.00011013]
[1764328383502,0.51214,91634.0,91633.0,0.01102533]
[1764328384402,0.08214,91634.0,91633.0,0.08764533]
[1764328384803,0.08214,91634.0,91633.0,0.09364533]
[1764328385711,0.08214,91634.0,91633.0,0.09464533]
[1764328387301,0.08214,91634.0,91633.0,0.11000364]
[1764328389412,0.08214,91634.0,91633.0,0.10900364]
[1764328390210,0.08214,91634.0,91633.0,0.03238364]
[1764328390707,0.08214,91634.0,91633.0,0.02638364]
[1764328391014,0.08314,91634.0,91633.0,0.02638364]
[1764328391614,0.08314,91634.0,91633.0,0.10300364]
[1764328392815,0.45314,91634.0,91633.0,0.02638364]
[1764328393007,0.45314,91634.0,91633.0,0.01546844]
[1764328397108,0.45314,91634.0,91633.0,0.09146844]
[1764328399413,0.45314,91634.0,91633.0,0.10238364]
[1764328402508,0.45314,91634.0,91633.0,0.02638364]
[1764328402719,0.45314,91634.0,91633.0,0.06418364]
[1764328403022,0.45314,91634.0,91633.0,0.10238364]
[1764328403414,0.45214,91634.0,91633.0,0.10238364]
[1764328403717,0.45314,91634.0,91633.0,0.06418364]
[1764328403917,0.45314,91634.0,91633.0,0.02638364]
[1764328406826,0.45314,91634.0,91633.0,0.10238364]
[1764328407426,0.45314,91634.0,91633.0,0.02638364]
[1764328408926,0.45314,91634.0,91633.0,0.06418364]
[1764328409519,0.45314,91634.0,91633.0,0.10238364]
[1764328410926,0.08314,91634.0,91633.0,0.10238364]
[1764328411521,0.10951994,91634.0,91633.0,0.10238364]
[1764328411725,0.10851994,91634.0,91633.0,0.10238364]
[1764328412226,0.03904,91634.0,91633.0,0.10238364]
[1764328413627,0.07395,91634.0,91633.0,0.10238364]
[1764328414123,0.07395,91634.0,91633.0,0.10338364]
[1764328415827,0.06882,91641.0,91640.0,0.0795444]
[1764328416027,0.51519853,91641.0,91640.0,0.0795444]
[1764328417531,0.51619853,91641.0,91640.0,0.06863]
[1764328417833,0.51619853,91641.0,91640.0,0.0336]
[1764328418032,0.51519853,91641.0,91640.0,0.0336]
[1764328418334,0.51619853,91641.0,91640.0,0.0336]
[1764328418734,0.51719853,91641.0,91640.0,0.0336]
[1764328419836,0.09179,91640.0,91639.0,0.0445144]
[1764328420029,0.11816853,91640.0,91639.0,0.0445144]
[1764328420229,0.09179,91640.0,91639.0,0.0795444]
[1764328421640,0.09279,91640.0,91639.0,0.0795444]
[1764328424625,0.09179,91640.0,91639.0,0.0795444]
[1764328424828,0.09279,91640.0,91639.0,0.0795444]
[1764328426831,0.09179,91640.0,91639.0,0.0795444]
[1764328427032,0.09279,91640.0,91639.0,0.0795444]
[1764328428933,0.1027051,91635.0,91634.0,0.0795451]
[1764328429935,0.09179,91635.0,91634.0,0.0795451]
[1764328432645,0.09279,91635.0,91634.0,0.0795451]
[1764328433644,0.09279,91635.0,91634.0,0.0109151]
[1764328433845,0.49279,91635.0,91634.0,0.0109151]
[1764328436952,0.51918228,91635.0,91634.0,0.0109151]
[1764328439658,0.0797351,91634.0,91633.0,0.01546844]
[1764328439953,0.54612738,91634.0,91633.0,0.01546844]
[1764328440852,0.54612738,91634.0,91611.0,0.09740114]
[1764328440853,0.1027077,91612.0,91611.0,0.09740114]
[1764328441052,0.06882,91609.0,91608.0,0.010918]
[1764328441253,0.09882,91609.0,91608.0,0.079548]
[1764328441557,0.06882,91609.0,91608.0,0.079548]
[1764328441766,0.06891354,91609.0,91608.0,0.079548]
[1764328442857,0.06891354,91609.0,91608.0,0.084548]
[1764328443368,0.46891354,91609.0,91608.0,0.016918]
[1764328443560,0.46891354,91609.0,91608.0,0.084158]
[1764328443956,0.46891354,91609.0,91608.0,0.006]
[1764328444267,0.47983164,91609.0,91608.0,0.006]
[1764328444564,0.06522,91591.0,91590.0,0.0781603]
[1764328444862,0.06533689,91591.0,91590.0,0.0781603]
[1764328445071,0.02043,91590.0,91586.0,0.06724]
[1764328445367,0.06522,91576.0,91575.0,0.438962]
[1764328446670,0.06522,91576.0,91575.0,0.443962]
[1764328446866,0.03189,91585.0,91584.0,0.0879411]
[1764328447070,0.41189,91585.0,91584.0,0.0879411]
[1764328447272,0.44522,91585.0,91584.0,0.06724]
[1764328448360,0.08251,91578.0,91577.0,0.0736918]
[1764328449468,0.08251,91578.0,91577.0,0.06277]
[1764328449673,0.47260116,91578.0,91577.0,0.06477]
[1764328450061,0.47260116,91578.0,91577.0,0.002]
[1764328454675,0.47260116,91578.0,91577.0,0.03272]
[1764328454970,0.47260116,91578.0,91577.0,0.002]
[1764328456072,0.47260116,91578.0,91566.0,0.00027303]
[1764328456073,0.0753831,91567.0,91566.0,0.00027303]
[1764328456273,0.99872713,91567.0,91566.0,2.865e-05]
[1764328456664,0.82628713,91567.0,91566.0,2.865e-05]
[1764328456864,0.98780403,91567.0,91566.0,0.06279865]
[1764328457371,0.98780403,91567.0,91566.0,0.00102865]
[1764328458170,0.98780403,91567.0,91566.0,0.00502865]
[1764328458771,0.98780403,91567.0,91566.0,0.00302865]
[1764328461474,0.0749741,91559.0,91558.0,0.00012683]
[1764328461682,0.4849741,91559.0,91558.0,0.00012683]
[1764328462180,0.08161,91548.0,91547.0,0.3717255]
[1764328462382,0.50161,91548.0,91547.0,0.3608]
[1764328462682,0.06405,91537.0,91536.0,0.4315568]
[1764328463082,0.47405,91537.0,91536.0,0.4315568]
[1764328463275,0.47413917,91537.0,91536.0,0.4315568]
[1764328463787,0.47413917,91537.0,91536.0,0.38813561]
[1764328463974,0.47413917,91537.0,91536.0,0.37720881]
[1764328464482,0.47413917,91537.0,91536.0,0.44796561]
[1764328464875,0.41008917,91537.0,91536.0,0.44896561]
[1764328465077,0.06413917,91537.0,91536.0,0.44896561]
[1764328465381,0.43413917,91537.0,91536.0,0.01940881]
[1764328466379,0.46356164,91537.0,91536.0,0.01940881]
[1764328466775,0.46356164,91537.0,91536.0,0.0008364]
[1764328466975,0.0749778,91528.0,91527.0,0.3608]
[1764328467181,0.46418703,91528.0,91527.0,0.3608]
[1764328467682,0.46418703,91528.0,91527.0,0.42063]
[1764328468286,0.46418703,91528.0,91527.0,0.3608]
[1764328468488,0.46418703,91528.0,91527.0,0.39089]
[1764328468678,0.49362138,91528.0,91527.0,0.003]
[1764328469580,0.06405,91509.0,91508.0,0.39089]
[1764328469775,0.06418566,91509.0,91508.0,0.42063]
[1764328470178,0.06418566,91509.0,91508.0,0.3608]
[1764328470384,0.54361299,91509.0,91508.0,0.3608]
[1764328470580,0.47418566,91509.0,91508.0,0.42063]
[1764328470775,0.50361436,91509.0,91508.0,0.42063]
[1764328471084,0.50361436,91509.0,91508.0,0.39489]
[1764328471286,0.50361436,91509.0,91508.0,0.38110071]
[1764328471786,0.50361436,91509.0,91508.0,0.37810071]
[1764328471989,0.06112,91491.0,91490.0,0.39207]
[1764328472191,0.06124475,91491.0,91490.0,0.4352923]
[1764328473081,0.06124475,91491.0,91490.0,0.4030023]
[1764328473288,0.06124475,91491.0,91490.0,0.4352923]
[1764328473484,0.49124475,91491.0,91490.0,0.3608]
[1764328473684,0.52066298,91491.0,91490.0,0.37707677]
[1764328473886,0.52066298,91491.0,91490.0,0.40934677]
[1764328474084,0.52066298,91491.0,91490.0,0.44163677]
[1764328474281,0.52066298,91491.0,91490.0,0.38207677]
[1764328474685,0.52066298,91491.0,91490.0,0.38107677]
[1764328474886,0.52366298,91491.0,91490.0,0.37707677]
[1764328475085,0.52366298,91491.0,91490.0,0.01627677]
[1764328475286,0.06112,91474.0,91460.0,0.0109358]
[1764328475582,0.06112,91452.0,91451.0,0.06655362]
[1764328475786,0.50053823,91452.0,91451.0,0.06655362]
[1764328476190,0.06112,91444.0,91425.0,0.3608]
[1764328476389,0.17256,91453.0,91425.0,0.3608]
[1764328476390,0.3608,91455.0,91454.0,0.06356]
[1764328476594,0.3608,91472.0,91471.0,0.06356]
[1764328476896,0.82138052,91472.0,91471.0,0.06356]
[1764328477191,0.78924052,91472.0,91471.0,0.06356]
[1764328477382,0.82138052,91472.0,91471.0,0.06356]
[1764328477587,0.38988715,91472.0,91471.0,0.06356]
[1764328477790,0.36690715,91472.0,91471.0,0.06356]
[1764328478188,0.42802715,91472.0,91471.0,0.03127]
[1764328478384,0.06112,91462.0,91461.0,0.42436]
[1764328478588,0.45112,91462.0,91461.0,0.06356]
[1764328479196,0.45112,91462.0,91461.0,0.03127]
[1764328479493,0.45112,91462.0,91455.0,0.0109364]
[1764328479494,0.06112,91456.0,91455.0,0.06356]
[1764328480096,0.00013396,91462.0,91444.0,0.3608]
[1764328480097,0.06125396,91462.0,91461.0,0.06356]
[1764328480400,0.40213396,91462.0,91461.0,0.06356]
[1764328480597,0.43111396,91462.0,91461.0,0.06356]
[1764328480899,0.46125396,91462.0,91461.0,0.06356]
[1764328481601,0.46325396,91462.0,91461.0,0.06356]
[1764328482307,0.40213396,91462.0,91461.0,0.06356]
[1764328482786,0.40213396,91462.0,91454.0,0.016019]
[1764328482787,0.06112,91457.0,91456.0,0.0422063]
[1764328482994,0.10898,91457.0,91456.0,0.0744963]
[1764328483194,0.06325396,91462.0,91461.0,0.0744958]
[1764328483389,0.06112,91454.0,91453.0,0.42436]
[1764328483695,0.81192,91454.0,91453.0,0.01646962]
[1764328483889,0.81192,91454.0,91443.0,0.3608]
[1764328483890,0.02898,91444.0,91443.0,0.42436]
[1764328484099,0.06112,91450.0,91449.0,0.06356]
[1764328484302,0.0720571,91450.0,91449.0,0.06356]
[1764328484505,0.36091801,91454.0,91453.0,0.06356]
[1764328484800,0.87203801,91454.0,91453.0,0.06356]
[1764328484990,0.00011801,91454.0,91453.0,0.06356]
[1764328485194,0.00011801,91454.0,91453.0,0.42436]
[1764328486503,0.17762517,91470.0,91462.0,0.06356]
[1764328486799,0.45914402,91463.0,91462.0,0.06356]
[1764328487594,0.45925603,91463.0,91462.0,0.0744956]
[1764328487796,0.00027603,91463.0,91462.0,0.0744956]
[1764328488098,0.00227603,91463.0,91462.0,0.0744956]
[1764328490906,0.42192,91482.0,91481.0,0.0744934]
[1764328491107,0.90191677,91482.0,91481.0,0.03127]
[1764328491603,0.0720536,91479.0,91476.0,0.01803]
[1764328491810,0.06112,91476.0,91475.0,0.03127]
[1764328492112,0.52018357,91476.0,91475.0,0.06356]
[1764328493012,0.02906357,91476.0,91475.0,0.06356]
[1764328493211,7.949e-05,91478.0,91477.0,0.06356]
[1764328493406,7.949e-05,91478.0,91477.0,0.42436]
[1764328493910,0.09032191,91478.0,91477.0,0.06356]
[1764328494209,0.46032191,91478.0,91477.0,0.06356]
[1764328494406,0.46532191,91478.0,91477.0,0.06356]
[1764328494802,0.06318191,91478.0,91477.0,0.06356]
[1764328495206,0.54532191,91478.0,91477.0,0.03127]
[1764328495411,0.30632191,91478.0,91477.0,0.06356]
[1764328495612,0.37632191,91478.0,91477.0,0.06356]
[1764328496501,0.37632191,91478.0,91477.0,0.03127]
[1764328496903,0.06112,91476.0,91475.0,0.0062]
[1764328497108,0.53024242,91476.0,91475.0,0.0062]
[1764328497312,0.53024242,91476.0,91440.0,0.0289682]
[1764328497313,0.0720548,91469.0,91450.0,0.37883]
[1764328497516,0.06112,91451.0,91450.0,0.3608]
[1764328497702,0.06112,91451.0,91440.0,0.01803]
[1764328497703,0.06112,91447.0,91440.0,0.0289683]
[1764328497912,0.46024242,91447.0,91440.0,0.0289683]
[1764328498302,0.82104242,91447.0,91436.0,0.0109387]
[1764328498507,0.82104242,91447.0,91439.0,0.01675903]
[1764328499207,0.82104242,91447.0,91435.0,0.3608]
[1764328499411,0.06112,91427.0,91426.0,0.0744999]
[1764328499622,0.09033763,91427.0,91426.0,0.0744999]
[1764328500306,0.09033763,91427.0,91422.0,0.03474692]
[1764328500307,0.06112,91423.0,91422.0,0.01671692]
[1764328500511,0.06112,91422.0,91421.0,0.0109405]
[1764328500712,0.06112,91418.0,91417.0,0.435301]
[1764328501016,0.02912242,91418.0,91417.0,0.435301]
[1764328501215,0.06112,91426.0,91425.0,0.03127]
[1764328501412,0.06112,91424.0,91423.0,0.0109402]
[1764328501607,0.49034852,91424.0,91423.0,0.0109402]
[1764328502006,0.42922852,91424.0,91423.0,0.0709802]
[1764328502413,0.48925852,91424.0,91423.0,0.0709802]
[1764328502609,0.42922852,91424.0,91423.0,0.0709802]
[1764328502812,0.45952852,91424.0,91423.0,0.0709802]
[1764328503012,0.16922852,91424.0,91423.0,0.0729802]
[1764328503210,0.02922852,91424.0,91423.0,0.0729802]
[1764328503909,0.09025852,91424.0,91423.0,0.0819802]
[1764328504318,0.09025852,91424.0,91423.0,0.0219402]
[1764328504519,0.09025852,91424.0,91423.0,0.0501202]
[1764328505117,0.50025852,91424.0,91423.0,0.011]
[1764328505506,0.0109413,91415.0,91409.0,0.3608]
[1764328505814,0.06003,91407.0,91399.0,0.3608]
[1764328506011,0.47937952,91407.0,91399.0,0.3608]
[1764328506206,0.47937952,91407.0,91390.0,0.36873343]
[1764328506407,0.06003,91395.0,91394.0,0.02831891]
[1764328506711,0.47936815,91395.0,91394.0,0.00013891]
[1764328507409,0.06003,91373.0,91372.0,0.41775]
[1764328507612,0.23315,91378.0,91377.0,0.0391258]
[1764328507815,0.06003,91373.0,91372.0,0.3608]
[1764328508007,0.06003,91367.0,91366.0,0.00027363]
[1764328508213,0.47847353,91367.0,91366.0,0.00027363]
[1764328508418,0.47847353,91367.0,91350.0,0.3608]
[1764328508419,0.0303,91351.0,91350.0,0.43449999]
[1764328508613,0.06003,91359.0,91358.0,0.010948]
[1764328508815,0.06003,91351.0,91350.0,0.3608]
[1764328509009,0.0303,91343.0,91342.0,0.01095]
[1764328509210,0.47003,91343.0,91342.0,0.01095]
[1764328509518,0.06003,91338.0,91337.0,0.0679006]
[1764328509724,0.06003,91334.0,91333.0,0.01665677]
[1764328509923,0.06003,91333.0,91332.0,0.3608]
[1764328510217,0.06003,91327.0,91326.0,0.00027375]
[1764328510521,0.06003,91327.0,91306.0,8.112e-05]
[1764328510522,0.38011657,91327.0,91309.0,0.067904]
[1764328510817,0.0303,91325.0,91324.0,0.0109521]
[1764328511019,0.06014657,91327.0,91326.0,0.05695]
[1764328511215,0.06003,91320.0,91319.0,0.3608]
[1764328511413,0.06003,91307.0,91306.0,8.112e-05]
[1764328511610,0.85094501,91307.0,91306.0,8.112e-05]
[1764328511813,0.87094501,91307.0,91306.0,8.112e-05]
[1764328512012,0.56091501,91307.0,91306.0,0.05703112]
[1764328512220,0.62094501,91307.0,91306.0,0.02826112]
[1764328512423,0.0303,91297.0,91284.0,0.3608]
[1764328512719,0.45003,91297.0,91290.0,0.0109562]
[1764328512910,0.0303,91287.0,91286.0,0.04735387]
[1764328513111,0.00024961,91296.0,91295.0,0.05695]
[1764328513914,0.43024961,91296.0,91295.0,0.05695]
[1764328514114,0.00024961,91296.0,91295.0,0.05695]
[1764328514921,0.07962,91293.0,91286.0,0.02017387]
[1764328515219,0.3608,91291.0,91286.0,0.08533387]
[1764328515524,0.45,91291.0,91290.0,0.08406]
[1764328515818,0.07962,91287.0,91286.0,0.00027387]
[1764328516019,0.07962,91270.0,91269.0,0.3608]
[1764328516325,0.07962,91270.0,91234.0,0.02471]
[1764328516326,0.07962,91253.0,91247.0,0.0109613]
[1764328516521,0.4597,91253.0,91251.0,0.01676519]
[1764328516824,0.4597,91253.0,91246.0,0.00027399]
[1764328516825,0.5097,91253.0,91246.0,0.00027399]
[1764328517023,0.5097,91253.0,91249.0,0.0109611]
[1764328517220,0.5097,91253.0,91252.0,0.04196735]
[1764328517521,0.43008,91253.0,91252.0,0.10886735]
[1764328517722,0.00016431,91262.0,91261.0,0.0950197]
[1764328517912,0.3608,91271.0,91270.0,0.0950186]
[1764328518224,0.44042,91271.0,91266.0,0.02471]
[1764328518520,0.44042,91271.0,91252.0,9.735e-05]
[1764328518521,0.03923,91253.0,91252.0,9.735e-05]